fUST/lending_fUST_20250424
["ID","MTS","AMOUNT","RATE_DAILY","PERIOD"]
[358794492,1745436638476,-500.0,0.00019762,2]
[358794494,1745436638488,-500.0,0.00019762,2]
[358794496,1745436638498,-500.0,0.00019762,2]
[358794508,1745436638648,-471.95554211,0.00019762,2]
[358794510,1745436638658,-500.0,0.00019762,2]
[358794512,1745436638668,-500.0,0.00019762,2]
[358794514,1745436638678,-500.0,0.00019762,2]
[358794516,1745436638688,-500.0,0.00019762,2]
[358794518,1745436638698,-500.0,0.00019762,2]
[358794520,1745436638707,-540.25823294,0.00019762,2]
[358794522,1745436638716,-500.0,0.00019762,2]
[358794524,1745436638726,-500.0,0.00019762,2]
[358794526,1745436638737,-500.0,0.00019762,2]
[358794528,1745436638748,-500.0,0.00019762,2]
[358794530,1745436638758,-500.0,0.00019762,2]
[358794533,1745436638768,-500.0,0.00019762,2]
[358794534,1745436638777,-500.0,0.00019762,2]
[358794536,1745436638786,-500.0,0.00019762,2]
[358794538,1745436638796,-23479.9042333,0.00019763,2]
[358794540,1745436638805,-1382.64737338,0.0001981,2]
[358794543,1745436638815,-196.43942237,0.0001991,5]
[358794544,1745436638824,-953.301535,0.0002,120]
[358794547,1745436638834,-490.65196462,0.00020249,2]
[358794549,1745436638844,-181.63575923,0.00020249,2]
[358794551,1745436638853,-66089.19842602,0.0002025,2]
[358794553,1745436638866,-13367.87686779,0.0002025,2]
[358794555,1745436638876,-5758.52989762,0.000203,2]
[358794557,1745436638886,-180.42243624,0.0002061,2]
[358794559,1745436638895,-5758.5298976,0.00020693,2]
[358794561,1745436638905,-151.0,0.00020759,2]
[358794563,1745436638914,-207.4,0.00020759,2]
[358794565,1745436638923,-229.8,0.0002076,3]
[358794567,1745436638933,-395.67857276,0.0002077,2]
[358794569,1745436638942,-500.0,0.00020773,2]
[358794571,1745436638952,-500.0,0.00020773,2]
[358794573,1745436638962,-502.04367879,0.00020773,2]
[358794575,1745436638972,-500.0,0.00020773,2]
[358794577,1745436638984,-500.0,0.00020773,2]
[358794579,1745436638993,-152.75464744,0.00020773,2]
[358794581,1745436639003,-500.0,0.00020773,2]
[358794583,1745436639012,-500.0,0.00020773,2]
[358794585,1745436639021,-500.0,0.00020773,2]
[358794587,1745436639031,-508.18283139,0.00020773,2]
[358794589,1745436639040,-553.15522377,0.00020773,2]
[358794591,1745436639049,-254.05331704,0.00020773,2]
[358794593,1745436639059,-500.0,0.00020773,2]
[358794595,1745436639068,-300.0,0.00020773,2]
[358794597,1745436639077,-500.0,0.00020773,2]
[358794599,1745436639087,-500.0,0.00020773,2]
[358794601,1745436639096,-500.0,0.00020773,2]
[358794603,1745436639105,-500.0,0.00020773,2]
[358794605,1745436639115,-500.0,0.00020773,2]
[358794607,1745436639125,-500.0,0.00020773,2]
[358794609,1745436639135,-500.0,0.00020773,2]
[358794611,1745436639144,-185.78024473,0.00020773,2]
[358794613,1745436639153,-400.78744329,0.00020773,2]
[358794615,1745436639163,-500.0,0.00020773,2]
[358794617,1745436639173,-161.55844519,0.00020773,2]
[358794619,1745436639183,-500.0,0.00020773,2]
[358794621,1745436639193,-500.0,0.00020773,2]
[358794623,1745436639202,-500.0,0.00020773,2]
[358794625,1745436639212,-500.0,0.00020773,2]
[358794627,1745436639221,-500.02025001,0.00020773,2]
[358794629,1745436639231,-500.0,0.00020773,2]
[358794631,1745436639243,-500.0,0.00020773,2]
[358794633,1745436639252,-501.18585351,0.00020773,2]
[358794635,1745436639262,-151.0,0.00020785,2]
[358794637,1745436639271,-499.71213654,0.00020785,2]
[358794639,1745436639281,-12573.79847128,0.00020794,2]
[358794641,1745436639290,-420.82143104,0.00020794,2]
[358794643,1745436639300,-160.0,0.00020794,2]
[358794645,1745436639309,-160.0,0.00020794,2]
[358794647,1745436639319,-839.95942076,0.00020794,2]
[358794649,1745436639329,-160.0,0.00020794,2]
[358794651,1745436639338,-160.0,0.00020794,2]
[358794653,1745436639348,-3081.98,0.000208,2]
[358794655,1745436639357,-162.174,0.0002084,2]
[358794657,1745436639367,-500.73937476,0.0002092,2]
[358794659,1745436639377,-500.0,0.00020938,2]
[358794661,1745436639386,-501.98168086,0.00020938,2]
[358794663,1745436639396,-165.61349575,0.00020954,2]
[358794665,1745436639406,-500.36044069,0.00020973,2]
[358794667,1745436639416,-500.0,0.00020973,2]
[358794670,1745436639426,-607.76,0.0002099,3]
[358794672,1745436639435,-303.88,0.0002099,3]
[358794674,1745436639444,-151.94,0.0002099,3]
[358794676,1745436639454,-759.7,0.0002099,3]
[358794678,1745436639464,-713.58,0.0002099,3]
[358794680,1745436639473,-356.79,0.0002099,3]
[358794682,1745436639485,-178.39,0.0002099,3]
[358794684,1745436639495,-535.21,0.0002099,3]
[358794686,1745436639504,-157.04,0.00021,2]
[358794688,1745436639514,-700.0,0.00021,2]
[358794690,1745436639523,-700.0,0.00021,2]
[358794692,1745436639534,-700.0,0.00021,2]
[358794694,1745436639543,-700.0,0.00021,2]
[358794696,1745436639553,-700.0,0.00021,2]
[358794698,1745436639563,-700.0,0.00021,2]
[358794699,1745436639573,-700.0,0.00021,2]
[358794701,1745436639582,-700.0,0.00021,2]
[358794702,1745436639594,-700.0,0.00021,2]
[358794703,1745436639605,-700.0,0.00021,2]
[358794704,1745436639615,-500.0,0.00021,2]
[358794705,1745436639624,-700.0,0.00021,2]
[358794706,1745436639634,-500.0,0.00021,2]
[358794707,1745436639645,-700.0,0.00021,2]
[358794708,1745436639655,-500.0,0.00021,2]
[358794709,1745436639666,-700.0,0.00021,2]
[358794710,1745436639676,-500.0,0.00021,2]
[358794711,1745436639686,-1020.0,0.00021,2]
[358794712,1745436639696,-500.0,0.00021,2]
[358794713,1745436639705,-500.0,0.00021,2]
[358794714,1745436639715,-500.0,0.00021,2]
[358794715,1745436639725,-500.0,0.00021,2]
[358794716,1745436639736,-500.0,0.00021,2]
[358794717,1745436639746,-500.0,0.00021,2]
[358794718,1745436639756,-500.0,0.00021,2]
[358794719,1745436639766,-500.0,0.00021,2]
[358794721,1745436639776,-800.0,0.00021,2]
[358794722,1745436639787,-649.13852449,0.00021,2]
[358794723,1745436639796,-500.0,0.00021,2]
[358794724,1745436639806,-500.0,0.00021,2]
[358794725,1745436639816,-500.0,0.00021,2]
[358794726,1745436639826,-500.0,0.00021,2]
[358794727,1745436639836,-1300.0,0.00021,2]
[358794728,1745436639846,-1300.0,0.00021,2]
[358794729,1745436639856,-1300.0,0.00021,2]
[358794730,1745436639865,-1300.0,0.00021,2]
[358794731,1745436639875,-1300.0,0.00021,2]
[358794732,1745436639885,-1300.0,0.00021,2]
[358794733,1745436639895,-1300.0,0.00021,2]
[358794734,1745436639905,-1300.0,0.00021,2]
[358794735,1745436639915,-1300.0,0.00021,2]
[358794736,1745436639924,-1300.0,0.00021,2]
[358794738,1745436639934,-1300.0,0.00021,2]
[358794740,1745436639944,-1300.0,0.00021,2]
[358794741,1745436639954,-1300.0,0.00021,2]
[358794742,1745436639964,-2000.0,0.00021,2]
[358794743,1745436639974,-266.61920571,0.00021,2]
[358794744,1745436639984,-500.0,0.0002103,2]
[358794745,1745436639995,-500.0,0.0002103,2]
[358794746,1745436640005,-151.0,0.0002103,2]
[358794747,1745436640014,-151.0,0.0002103,2]
[358794748,1745436640024,-151.0,0.0002103,2]
[358794749,1745436640034,-151.0,0.0002103,2]
[358794750,1745436640044,-420.0,0.00021168,2]
[358794751,1745436640053,-596.46313052,0.00021304,2]
[358794752,1745436640063,-151.0,0.00021304,2]
[358794753,1745436640073,-255.01232731,0.00021304,2]
[358794754,1745436640083,-151.0,0.00021307,2]
[358794755,1745436640092,-5758.5298976,0.00021486,3]
[358794756,1745436640101,-942.809062,0.00021521,2]
[358794757,1745436640111,-942.809062,0.00021521,2]
[358794758,1745436640121,-846.281588,0.00021521,2]
[358794759,1745436640130,-846.281588,0.00021521,2]
[358794760,1745436640140,-3316.061954,0.00021521,2]
[358794761,1745436640150,-3316.061954,0.00021521,2]
[358794762,1745436640160,-151.0,0.00021523,2]
[358794763,1745436640170,-151.0,0.00021523,2]
[358794764,1745436640181,-151.0,0.00021523,2]
[358794765,1745436640191,-321.619746,0.00021523,2]
[358794766,1745436640200,-321.619746,0.00021523,2]
[358794767,1745436640210,-151.0,0.00021525,2]
[358794768,1745436640219,-245.0,0.00021578,2]
[358794769,1745436640229,-160.0,0.00021659,3]
[358794770,1745436640241,-12573.79847128,0.00021659,3]
[358794771,1745436640250,-160.0,0.00021659,3]
[358794772,1745436640261,-839.95942076,0.00021659,3]
[358794773,1745436640270,-160.0,0.00021659,3]
[358794774,1745436640280,-151.0,0.00021855,2]
[358794775,1745436640290,-901.27230684,0.00021913,2]
[358794776,1745436640300,-160.0,0.00021917,2]
[358794777,1745436640310,-284.815302,0.00021918,2]
[358794778,1745436640320,-197.96296613,0.00021918,2]
[358794779,1745436640330,-348.59972893,0.00022,2]
[358794780,1745436640340,-1000.0,0.00022,2]
[358794781,1745436640349,-706.0,0.00022005,2]
[358794782,1745436640359,-2246.0,0.00022005,2]
[358794783,1745436640368,-544.0,0.00022005,2]
[358794784,1745436640378,-403.0,0.00022005,2]
[358794785,1745436640387,-403.0,0.00022005,2]
[358794786,1745436640397,-215.0738,0.00022128,2]
[358794787,1745436640407,-1027.48826322,0.00022177,2]
[358794788,1745436640417,-777.9057289,0.0002226,2]
[358794789,1745436640427,-5758.5298976,0.00022279,3]
[358794790,1745436640437,-1215.52,0.0002236,3]
[358794791,1745436640446,-607.76,0.0002236,3]
[358794792,1745436640456,-151.0,0.00022403,2]
[358794793,1745436640466,-600.0,0.00022416,2]
[358794794,1745436640476,-777.90572886,0.00022808,2]
[358794795,1745436640489,-250.0,0.00022867,2]
[358794796,1745436640499,-151.75493893,0.000229,2]
[358794797,1745436640509,-151.0,0.00022951,2]
[358794798,1745436640520,-160.0,0.00023,3]
[358794799,1745436640530,-420.82143104,0.00023,3]
[358794800,1745436640663,-246.88759655,0.00023,2]
[358794801,1745436640674,-1043.43506173,0.00023,2]
[358794802,1745436640683,-160.0,0.00023,3]
[358794803,1745436640694,-160.0,0.00023,3]
[358794804,1745436640704,-1382.64737337,0.00023026,2]
[358794805,1745436640713,-587.0,0.00023063,2]
[358794806,1745436640723,-5758.5298976,0.00023072,4]
[358794807,1745436640734,-2537.35943972,0.00023248,2]
[358794808,1745436640743,-500.0,0.00023267,2]
[358794809,1745436640752,-500.0,0.00023267,2]
[358794810,1745436640762,-500.0,0.00023267,2]
[358794811,1745436640773,-205.18367762,0.00023267,2]
[358794813,1745436640783,-616.90696445,0.00023267,2]
[358794814,1745436640793,-500.0,0.00023267,2]
[358794815,1745436640802,-500.13208175,0.00023267,2]
[358794816,1745436640812,-160.0,0.00023287,2]
[358794817,1745436640821,-151.0,0.000233,6]
[358794818,1745436640831,-1642.26243,0.000233,2]
[358794819,1745436640841,-942.809062,0.00023348,7]
[358794820,1745436640850,-942.809062,0.00023348,7]
[358794821,1745436640860,-846.281588,0.00023348,7]
[358794822,1745436640870,-846.281588,0.00023348,7]
[358794823,1745436640879,-151.0,0.00023348,7]
[358794824,1745436640889,-3316.061954,0.00023348,7]
[358794825,1745436640899,-3316.061954,0.00023348,7]
[358794826,1745436640908,-12573.79847128,0.00023348,7]
[358794827,1745436640917,-160.0,0.00023348,7]
[358794828,1745436640927,-839.95942076,0.00023348,7]
[358794829,1745436640936,-160.0,0.00023348,7]
[358794830,1745436640945,-777.90572886,0.00023355,2]
[358794831,1745436640954,-207.4,0.00023497,2]
[358794833,1745436640964,-151.0,0.00023499,2]
[358794834,1745436640974,-151.0,0.000235,5]
[358794835,1745436640984,-151.0,0.000236,8]
[358794836,1745436640993,-151.0,0.000237,10]
[358794837,1745436641002,-1000.0,0.000238,2]
[358794838,1745436641012,-5758.5298976,0.00023866,5]
[358794839,1745436641021,-3141.7,0.0002389,2]
[358794840,1745436641031,-3141.7,0.0002389,2]
[358794841,1745436641041,-151.0,0.000239,7]
[358794843,1745436641051,-151.0,0.000239,7]
[358794844,1745436641061,-321.619746,0.000239,7]
[358794845,1745436641070,-321.619746,0.000239,7]
[358794846,1745436641080,-151.0,0.000239,8]
[358794847,1745436641090,-777.90572886,0.00023903,2]
[358794848,1745436641099,-289.8158653,0.0002399,2]
[358794849,1745436641110,-151.0,0.00024,7]
[358794850,1745436641119,-420.82143104,0.00024,7]
[358794851,1745436641129,-160.0,0.00024,7]
[358794852,1745436641139,-160.0,0.00024,7]
[358794853,1745436641148,-222.56536409,0.00024001,2]
[358794854,1745436641158,-151.0,0.00024047,2]
[358794855,1745436641167,-900.0,0.0002406,2]
[358794856,1745436641177,-151.0,0.000241,9]
[358794857,1745436641187,-363.73433376,0.00024192,2]
[358794858,1745436641197,-151.0,0.000242,7]
[358794859,1745436641207,-942.809062,0.00024226,7]
[358794860,1745436641218,-942.809062,0.00024226,7]
[358794861,1745436641227,-846.281588,0.00024226,7]
[358794862,1745436641238,-846.281588,0.00024226,7]
[358794863,1745436641247,-3316.061954,0.00024226,7]
[358794864,1745436641257,-3316.061954,0.00024226,7]
[358794865,1745436641268,-151.0,0.00024233,7]
[358794866,1745436641277,-151.0,0.00024251,7]
[358794867,1745436641287,-151.0,0.00024251,7]
[358794868,1745436641297,-321.619746,0.00024251,7]
[358794869,1745436641306,-321.619746,0.00024251,7]
[358794870,1745436641316,-663.158,0.00024257,6]
[358794871,1745436641326,-172.66420164,0.0002426,6]
[358794872,1745436641335,-304.3,0.00024265,2]
[358794873,1745436641345,-942.809062,0.00024268,7]
[358794874,1745436641355,-942.809062,0.00024268,7]
[358794875,1745436641365,-846.281588,0.00024268,7]
[358794876,1745436641374,-846.281588,0.00024268,7]
[358794877,1745436641384,-3316.061954,0.00024268,7]
[358794878,1745436641393,-3316.061954,0.00024268,7]
[358794879,1745436641403,-420.82143104,0.00024268,7]
[358794880,1745436641413,-160.0,0.00024268,7]
[358794881,1745436641423,-160.0,0.00024268,7]
[358794882,1745436641434,-839.95942076,0.00024268,7]
[358794883,1745436641444,-160.0,0.00024268,7]
[358794884,1745436641454,-160.0,0.00024268,7]
[358794885,1745436641463,-942.809062,0.00024277,7]
[358794886,1745436641473,-942.809062,0.00024277,7]
[358794887,1745436641485,-942.809062,0.00024277,7]
[358794888,1745436641495,-942.809062,0.00024277,7]
[358794889,1745436641505,-846.281588,0.00024277,7]
[358794890,1745436641515,-846.281588,0.00024277,7]
[358794891,1745436641525,-846.281588,0.00024277,7]
[358794892,1745436641535,-846.281588,0.00024277,7]
[358794893,1745436641544,-3316.061954,0.00024277,7]
[358794894,1745436641555,-3316.061954,0.00024277,7]
[358794895,1745436641565,-3316.061954,0.00024277,7]
[358794896,1745436641575,-3316.061954,0.00024277,7]
[358794897,1745436641585,-12500.0,0.00024277,3]
[358794898,1745436641600,-151.0,0.00024278,7]
[358794899,1745436641610,-151.0,0.0002428,7]
[358794900,1745436641620,-151.0,0.0002428,7]
[358794901,1745436641631,-321.619746,0.0002428,7]
[358794902,1745436641641,-321.619746,0.0002428,7]
[358794903,1745436641650,-12500.0,0.00024286,3]
[358794904,1745436641660,-420.82143104,0.00024286,3]
[358794905,1745436641671,-12573.79847128,0.00024286,3]
[358794906,1745436641681,-160.0,0.00024286,3]
[358794907,1745436641691,-160.0,0.00024286,3]
[358794908,1745436641700,-839.95942076,0.00024286,3]
[358794909,1745436641710,-160.0,0.00024286,3]
[358794910,1745436641720,-160.0,0.00024286,3]
[358794911,1745436641729,-12500.0,0.00024295,3]
[358794912,1745436641740,-151.0,0.00024295,7]
[358794913,1745436641750,-151.0,0.000243,5]
[358794914,1745436641760,-1000.0,0.000243,2]
[358794915,1745436641770,-177.2424345,0.00024303,2]
[358794916,1745436641780,-12500.0,0.00024304,3]
[358794917,1745436641790,-902.532572,0.00024304,2]
[358794918,1745436641799,-902.532572,0.00024304,2]
[358794919,1745436641809,-151.0,0.00024304,7]
[358794920,1745436641819,-151.0,0.00024304,7]
[358794921,1745436641828,-151.0,0.00024304,7]
[358794922,1745436641838,-151.0,0.00024304,7]
[358794923,1745436641847,-321.619746,0.00024304,7]
[358794924,1745436641857,-321.619746,0.00024304,7]
[358794925,1745436641866,-321.619746,0.00024304,7]
[358794926,1745436641875,-321.619746,0.00024304,7]
[358794927,1745436641885,-942.809062,0.00024304,7]
[358794928,1745436641895,-942.809062,0.00024304,7]
[358794929,1745436641905,-846.281588,0.00024304,7]
[358794930,1745436641915,-846.281588,0.00024304,7]
[358794931,1745436641925,-151.0,0.00024304,7]
[358794932,1745436641934,-151.0,0.00024304,7]
[358794933,1745436641945,-3316.061954,0.00024304,7]
[358794934,1745436641954,-3316.061954,0.00024304,7]
[358794935,1745436641964,-151.0,0.00024304,2]
[358794936,1745436641974,-12500.0,0.00024313,3]
[358794937,1745436641984,-420.82143104,0.00024313,3]
[358794938,1745436641994,-160.0,0.00024313,3]
[358794939,1745436642003,-160.0,0.00024313,3]
[358794940,1745436642013,-12500.0,0.00024321,3]
[358794941,1745436642022,-839.95942076,0.00024321,3]
[358794942,1745436642031,-160.0,0.00024321,3]
[358794943,1745436642041,-160.0,0.00024321,3]
[358794944,1745436642051,-151.0,0.0002433,7]
[358794945,1745436642061,-151.0,0.0002433,7]
[358794946,1745436642070,-151.0,0.0002433,7]
[358794947,1745436642080,-151.0,0.0002433,7]
[358794948,1745436642089,-251.987073,0.0002433,7]
[358794949,1745436642099,-251.987073,0.0002433,7]
[358794950,1745436642108,-281.902977,0.0002433,7]
[358794951,1745436642117,-281.902977,0.0002433,7]
[358794952,1745436642127,-151.0,0.0002433,7]
[358794953,1745436642137,-151.0,0.0002433,7]
[358794954,1745436642147,-151.0,0.0002433,7]
[358794955,1745436642156,-151.0,0.0002433,7]
[358794956,1745436642166,-151.0,0.0002433,7]
[358794957,1745436642177,-151.0,0.0002433,7]
[358794958,1745436642187,-194.29474869,0.0002433,2]
[358794959,1745436642196,-177.509781,0.0002433,7]
[358794960,1745436642207,-12500.0,0.0002433,3]
[358794961,1745436642217,-12500.0,0.0002433,3]
[358794962,1745436642226,-151.0,0.00024339,7]
[358794963,1745436642237,-151.0,0.00024339,7]
[358794964,1745436642248,-151.0,0.00024339,7]
[358794965,1745436642257,-12500.0,0.00024339,3]
[358794966,1745436642268,-902.532572,0.00024339,2]
[358794967,1745436642277,-902.532572,0.00024339,2]
[358794968,1745436642288,-151.0,0.00024339,7]
[358794969,1745436642298,-151.0,0.00024339,7]
[358794970,1745436642308,-321.619746,0.00024339,7]
[358794971,1745436642318,-321.619746,0.00024339,7]
[358794972,1745436642328,-942.809062,0.00024339,7]
[358794973,1745436642338,-942.809062,0.00024339,7]
[358794974,1745436642348,-12500.0,0.00024339,3]
[358794975,1745436642357,-846.281588,0.00024339,7]
[358794976,1745436642367,-846.281588,0.00024339,7]
[358794977,1745436642377,-215.173394,0.00024339,7]
[358794978,1745436642387,-3316.061954,0.00024339,7]
[358794979,1745436642397,-3316.061954,0.00024339,7]
[358794980,1745436642535,-151.0,0.00024339,7]
[358794981,1745436642546,-153.7173,0.00024339,7]
[358794982,1745436642556,-151.0,0.00024339,7]
[358794983,1745436642565,-151.0,0.00024339,7]
[358794984,1745436642575,-151.0,0.00024339,7]
[358794985,1745436642585,-420.82143104,0.00024339,7]
[358794986,1745436642600,-482.499622,0.00024339,7]
[358794987,1745436642610,-322.508619,0.00024339,7]
[358794988,1745436642620,-482.499622,0.00024339,7]
[358794989,1745436642630,-322.508619,0.00024339,7]
[358794991,1745436642641,-965.306003,0.00024339,7]
[358794992,1745436642650,-965.306003,0.00024339,7]
[358794993,1745436642659,-151.0,0.00024339,7]
[358794994,1745436642876,-151.0,0.00024339,7]
[358794995,1745436642887,-160.0,0.00024339,7]
[358794996,1745436642896,-160.0,0.00024339,7]
[358794997,1745436642906,-151.0,0.00024339,7]
[358794998,1745436642915,-151.0,0.00024339,7]
[358794999,1745436642925,-839.95942076,0.0002434,7]
[358795000,1745436642935,-160.0,0.0002434,7]
[358795001,1745436642945,-160.0,0.0002434,7]
[358795002,1745436642954,-12500.0,0.00024348,3]
[358795003,1745436642964,-12500.0,0.00024348,3]
[358795004,1745436642974,-151.059585,0.00024348,7]
[358795005,1745436642984,-151.059585,0.00024348,7]
[358795006,1745436642995,-329.268756,0.00024348,2]
[358795007,1745436643004,-329.268756,0.00024348,2]
[358795008,1745436643014,-151.0,0.00024348,7]
[358795009,1745436643024,-238.325384,0.00024348,7]
[358795010,1745436643034,-238.325384,0.00024348,7]
[358795011,1745436643043,-151.0,0.00024356,7]
[358795012,1745436643052,-151.0,0.00024356,7]
[358795013,1745436643062,-902.532572,0.00024356,2]
[358795014,1745436643071,-902.532572,0.00024356,2]
[358795015,1745436643081,-902.532572,0.00024356,2]
[358795016,1745436643091,-902.532572,0.00024356,2]
[358795017,1745436643101,-12500.0,0.00024357,3]
[358795018,1745436643110,-12500.0,0.00024357,3]
[358795019,1745436643120,-151.0,0.00024357,7]
[358795020,1745436643130,-151.0,0.00024357,7]
[358795021,1745436643139,-151.0,0.00024357,7]
[358795022,1745436643149,-415.756354,0.00024357,7]
[358795023,1745436643159,-415.756354,0.00024357,7]
[358795024,1745436643169,-151.0,0.00024357,7]
[358795025,1745436643179,-151.0,0.00024365,7]
[358795026,1745436643189,-151.0,0.00024365,7]
[358795027,1745436643198,-151.059585,0.00024365,7]
[358795028,1745436643208,-151.059585,0.00024365,7]
[358795029,1745436643218,-329.268756,0.00024365,2]
[358795030,1745436643228,-329.268756,0.00024365,2]
[358795031,1745436643238,-151.0,0.00024365,7]
[358795032,1745436643247,-448.254368,0.00024365,7]
[358795033,1745436643258,-448.254368,0.00024365,7]
[358795034,1745436643268,-238.325384,0.00024365,7]
[358795035,1745436643278,-238.325384,0.00024365,7]
[358795036,1745436643287,-151.0,0.00024365,7]
[358795037,1745436643296,-902.532572,0.00024365,2]
[358795038,1745436643309,-902.532572,0.00024365,2]
[358795039,1745436643319,-151.0,0.00024365,7]
[358795040,1745436643328,-151.0,0.00024365,7]
[358795041,1745436643338,-321.619746,0.00024365,7]
[358795042,1745436643348,-321.619746,0.00024365,7]
[358795043,1745436643357,-942.809062,0.00024365,7]
[358795044,1745436643368,-942.809062,0.00024365,7]
[358795045,1745436643377,-846.281588,0.00024365,7]
[358795046,1745436643387,-846.281588,0.00024365,7]
[358795047,1745436643396,-3316.061954,0.00024365,7]
[358795048,1745436643406,-151.0,0.00024365,7]
[358795049,1745436643416,-3316.061954,0.00024365,7]
[358795050,1745436643425,-151.0,0.00024365,7]
[358795051,1745436643435,-151.0,0.00024365,7]
[358795052,1745436643445,-151.0,0.00024365,7]
[358795053,1745436643455,-356.984825,0.00024365,7]
[358795056,1745436643465,-356.984825,0.00024365,7]
[358795057,1745436643475,-151.0,0.00024365,7]
[358795058,1745436643485,-198.363091,0.00024365,7]
[358795059,1745436643495,-151.0,0.00024365,7]
[358795060,1745436643504,-482.499622,0.00024365,7]
[358795062,1745436643514,-322.508619,0.00024365,7]
[358795063,1745436643523,-482.499622,0.00024365,7]
[358795066,1745436643533,-322.508619,0.00024365,7]
[358795069,1745436643543,-965.306003,0.00024365,7]
[358795074,1745436643564,-965.306003,0.00024365,7]
[358795077,1745436643585,-151.0,0.00024365,7]
[358795079,1745436643603,-151.0,0.00024365,7]
[358795080,1745436643622,-151.0,0.00024365,7]
[358795081,1745436643642,-151.0,0.00024365,7]
[358795082,1745436643665,-4413.68865539,0.00024365,3]
[358795083,1745436643684,-12500.0,0.00024365,3]
[358795084,1745436643702,-12500.0,0.00024365,3]
[358795085,1745436643722,-12500.0,0.00024365,3]
[358795086,1745436643738,-1013.809181,0.0002437,2]
[358795087,1745436643753,-504.38493982,0.00024373,2]
[358795088,1745436643772,-500.0,0.00024373,2]
[358795089,1745436643791,-500.0,0.00024373,2]
[358795090,1745436643812,-280.30627809,0.00024373,2]
[358795091,1745436643828,-500.0,0.00024373,2]
[358795092,1745436643841,-500.0,0.00024373,2]
[358795093,1745436643860,-500.0,0.00024373,2]
[358795094,1745436643878,-500.0,0.00024373,2]
[358795095,1745436643898,-160.77469476,0.00024373,2]
[358795096,1745436643915,-500.0,0.00024373,2]
[358795097,1745436643929,-500.0,0.00024373,2]
[358795098,1745436643944,-500.0,0.00024373,2]
[358795099,1745436643959,-500.0,0.00024373,2]
[358795100,1745436643974,-500.0,0.00024373,2]
[358795101,1745436643991,-500.0,0.00024373,2]
[358795103,1745436644007,-500.0,0.00024373,2]
[358795105,1745436644023,-500.0,0.00024373,2]
[358795108,1745436644039,-553.78960758,0.00024373,2]
[358795111,1745436644057,-500.94284137,0.00024373,2]
[358795115,1745436644072,-502.26641708,0.00024373,2]
[358795118,1745436644087,-500.0,0.00024373,2]
[358795120,1745436644102,-500.0,0.00024373,2]
[358795123,1745436644117,-500.0,0.00024373,2]
[358795126,1745436644132,-500.0,0.00024373,2]
[358795128,1745436644146,-500.0,0.00024373,2]
[358795131,1745436644160,-500.0,0.00024373,2]
[358795132,1745436644177,-500.0,0.00024373,2]
[358795135,1745436644193,-500.0,0.00024373,2]
[358795137,1745436644208,-500.0,0.00024373,2]
[358795140,1745436644224,-500.16551554,0.00024373,2]
[358795141,1745436644241,-500.0,0.00024373,2]
[358795142,1745436644256,-500.0,0.00024373,2]
[358795143,1745436644274,-500.0,0.00024373,2]
[358795144,1745436644289,-500.0,0.00024373,2]
[358795145,1745436644305,-500.0,0.00024373,2]
[358795146,1745436644320,-500.0,0.00024373,2]